Cogmind - Beta 17 @@@ ROGUE MODE // 2026.07.08 @ 19:32:25 Player: teag2 Result: Destroyed by G-73 Enforcer with Heavy Laser Performance ------------- Evolutions (9) 4500 Regions Visited (18) 3600 Robots Destroyed (354) 1770 Value Destroyed (16459) 16459 Prototype IDs (33) 660 Alien Tech Used (0) 0 Bonus (12487) 12487 TOTAL SCORE: 39476 Bonus ------- Triggered High Security 500 High Alert Combat Kills 5932 Follower Combat Kills 3582 Entered Garrisons 400 Used RIF Installer 1000 Network Hubs Disabled 200 Registered with UFD 300 Met Optimus in HQ 500 Built Enhanced Grunts 300 Friendly Fire -227 Cogmind --------- Core Integrity 0/1600 Matter 42/300 Energy 100/100 System Corruption 0% Temperature Cool (36) Movement Core (50) Location -1/Access Parts ------- > --- POWER (2) -------- (None) > --- PROPULSION (8) --- (None) > --- UTILITY (11) ----- (None) > --- WEAPON (4) ------- (None) > --- INVENTORY (5) ---- Light Quantum Reactor Improved Cooling System Advanced Energy Well (500) Advanced Signal Interpreter Improved Force Field Peak State ------------ > --- POWER ------------ Light Quantum Reactor Light Quantum Reactor > --- PROPULSION ------- Improved Heavy Treads Improved Heavy Treads > --- UTILITY ---------- Improved Cryofiber Web Experimental Heat Sink High-capacity Storage Unit 0b10 Decoder Chip [Generic] Advanced Particle Charger Centrium Medium Armor Plating Improved Thermal Shield Improved Force Field System Shield > --- WEAPON ----------- Enhanced Quantum Rifle Enhanced Nova Cannon Enhanced Hardcell Cannon Enhanced Hardcell Cannon > --- INVENTORY -------- Quantum Reactor Light Quantum Reactor Improved Heavy Treads Improved Heavy Treads Experimental Heat Sink Advanced Energy Well Matter Compressor Improved Medium Armor Plating Improved Force Field System Shield Relay Coupler [NC] Relay Coupler [Grunt] Relay Coupler [Hunter] Relay Coupler [Hunter] A0-MCA's Component Scanner Precision Rocket Launcher Improved Remote Datajack DRS Beacon [Rating: 144] Favorites ----------- Power Antimatter Reactor Engine Cooled Ion Engine Power Core Light Fission Core Reactor Antimatter Reactor Propulsion Light Treads Treads Light Treads Leg Flexi-carbon Leg Hover Unit Improved Linear Gravjet Flight Unit Field Propulsion Array Utility High-capacity Storage Unit Device Improved Cryofiber Web Storage High-capacity Storage Unit Processor 0b10 Decoder Chip [Generic] Hackware Hacking Suite Protection Centrium Medium Armor Plating Weapon Cooled Plasma Cannon Energy Gun Heavy Beamcaster Energy Cannon Cooled Plasma Cannon Ballistic Gun Assault Rifle Ballistic Cannon Enhanced Hardcell Cannon Launcher Precision Rocket Launcher Special Weapon Improved Remote Datajack Special Melee Weapon Advanced Datajack Build | -11 -10 -9 -9 -9 -9 -6 -6 -6 -6 -6 -6 -6 -5 -5 -4 -3 -2 -1 ------- Run | Yrd Mat Mat Sto Rec Scr Fac Gar Fac Ext Cet Arc Hub Fac Gar Fac Res Res Acc Slots Evolved 18 | . . 2 . . . 6 . . . . . . 2 . 2 2 2 2 Power 1 | . . . . . . . . . . . . . 1 . . . . . Propulsion 6 | . . 1 . . . 1 . . . . . . . . . 2 1 1 Utility 9 | . . 1 . . . 4 . . . . . . 1 . 1 . 1 1 Weapon 2 | . . . . . . 1 . . . . . . . . 1 . . . Parts Attached 216 | 6 4 20 11 . 5 27 18 12 18 7 9 7 23 24 19 3 . 3 Power 23 | 1 . 3 4 . . 2 1 1 1 1 . . 3 5 1 . . . Engine 13 | 1 . 2 4 . . 2 1 1 . . . . 2 . . . . . Core 4 | . . 1 . . . . . . 1 . . . . 2 . . . . Reactor 6 | . . . . . . . . . . 1 . . 1 3 1 . . . Propulsion 56 | 2 . 7 3 . 2 7 6 3 5 . 1 3 10 3 2 1 . 1 Treads 44 | 2 . 7 3 . 2 3 6 1 5 . 1 3 6 3 2 . . . Leg 10 | . . . . . . 4 . 2 . . . . 4 . . . . . Wheel . | . . . . . . . . . . . . . . . . . . . Hover 1 | . . . . . . . . . . . . . . . . 1 . . Flight 1 | . . . . . . . . . . . . . . . . . . 1 Utility 83 | 1 4 3 . . 2 9 8 6 7 4 6 . 8 9 14 1 . 1 Device 38 | . 1 2 . . 2 5 5 2 2 2 3 . 4 4 4 1 . 1 Storage 5 | 1 2 . . . . . 1 . . 1 . . . . . . . . Processor 2 | . . . . . . 1 . . . . . . . . 1 . . . Hackware 23 | . . . . . . 2 . 1 3 . 3 . 3 4 7 . . . Protection 15 | . 1 1 . . . 1 2 3 2 1 . . 1 1 2 . . . Artifact . | . . . . . . . . . . . . . . . . . . . Weapon 54 | 2 . 7 4 . 1 9 3 2 5 2 2 4 2 7 2 1 . 1 Energy Gun 15 | 1 . 2 1 . . . . . 3 1 1 1 1 3 . . . 1 Energy Cannon 20 | . . 3 2 . 1 7 1 1 1 . . 2 1 1 . . . . Ballistic Gun 7 | 1 . . 1 . . 2 . . . 1 . . . 1 1 . . . Ballistic Cannon 4 | . . 1 . . . . . . 1 . . . . 1 1 . . . Launcher 2 | . . 1 . . . . . . . . . 1 . . . . . . Special Weapon 4 | . . . . . . . 2 1 . . . . . 1 . . . . Impact Weapon . | . . . . . . . . . . . . . . . . . . . Slashing Weapon . | . . . . . . . . . . . . . . . . . . . Piercing Weapon . | . . . . . . . . . . . . . . . . . . . Special Melee Weapon 2 | . . . . . . . . . . . 1 . . . . 1 . . Unidentified Prototypes 16 | . . 4 4 . . 2 . . . 3 . 1 2 . . . . . Parts Lost 81 | . . . 1 . . 10 2 3 8 1 . 2 12 9 21 4 . 8 Power 7 | . . . . . . . . . . . . . 2 2 3 . . . Propulsion 21 | . . . . . . 6 1 1 2 . . 1 5 . 3 1 . 1 Utility 36 | . . . . . . 3 . 2 2 1 . . 5 5 10 2 . 6 Weapon 17 | . . . 1 . . 1 1 . 4 . . 1 . 2 5 1 . 1 Highest Loss Streak 13 | . . . 1 . . 5 1 2 2 1 . 1 6 4 13 3 . 6 To Critical Strikes 1 | . . . . . . 1 . . . . . . . . . . . . Average Backups 16 | 1 9 19 19 20 19 16 16 17 17 18 17 18 18 15 14 5 5 4 Power 1 | . 1 2 3 4 3 2 2 1 1 1 1 1 1 1 1 1 1 1 Propulsion 1 | . 1 3 3 3 2 . . . 1 1 . . . 2 1 . . . Utility 10 | . 2 8 9 9 8 9 9 12 13 12 13 14 14 9 8 4 3 3 Weapon 2 | . 3 6 4 4 4 2 2 1 1 1 1 2 1 1 1 . . . Tool/Special . | . . . . . . . . . . . . . . . . . . . Unused Backups 54 | . 2 14 1 . 3 13 4 . 2 1 3 1 1 5 . . 1 3 Power 8 | . . 3 . . 1 2 . . . . . . . 1 . . . 1 Propulsion 4 | . . . . . . . 1 . . 1 1 . . 1 . . . . Utility 24 | . . 2 . . 2 7 3 . 1 . 1 1 1 3 . . 1 2 Weapon 17 | . 2 9 1 . . 4 . . 1 . . . . . . . . . Tool/Special 1 | . . . . . . . . . . . 1 . . . . . . . Average Slot Usage (%) 92 | . 97 99 100 100 99 90 91 85 95 100 98 99 91 86 82 31 21 17 Engine 6 | . 14 9 11 11 11 6 6 6 5 . . . 2 . . . . . Reactor 2 | . . . . . . . . . . 1 6 6 4 8 9 . . . Treads 21 | . 28 33 33 33 33 14 16 11 18 26 26 25 15 9 9 . . . Leg 1 | . . . . . . 7 2 . 4 . . . 1 3 . . . . Device 16 | . 7 21 22 22 21 17 15 12 13 12 10 13 16 18 21 3 4 2 Storage 7 | . 14 11 11 11 11 6 6 6 6 6 6 6 5 5 4 . . . Processor 3 | . . . . . . 5 6 6 6 6 6 6 5 5 2 4 4 3 Hackware 6 | . . . . . . 7 10 6 11 13 13 13 10 7 8 19 13 8 Protection 4 | . 4 . . . . 2 4 12 7 6 6 6 5 5 4 . . . Energy Gun 4 | . 14 . . . . . . . 8 13 11 4 4 8 2 . . 1 Energy Cannon 13 | . . 20 21 22 21 18 19 19 9 6 6 14 10 4 4 . . . Ballistic Gun 1 | . 14 . . . . 1 . . . . . . . . . . . . Peak Build Rating 144 | 6 8 23 24 21 29 75 86 86 80 73 77 77 102 130 144 42 30 46 Average Rating 57 | 4 7 17 21 21 22 55 76 81 62 67 72 74 92 109 128 40 29 30 On Entrance 48 | . 6 8 19 21 21 23 75 85 78 58 71 76 77 80 125 35 30 30 Avg Prop Armor Cover (%) 7 | . . . . . . 10 . 5 6 . . . 5 7 10 . . . Naked Turns 14 | . . . . . . . . . . . . . . . . . . 14 Heaviest Build 150 | 14 50 59 57 57 65 80 92 92 86 85 84 93 104 117 150 3 3 7 Greatest Support 150 | 40 40 63 63 60 60 96 150 150 80 80 83 91 128 150 150 11 3 15 Greatest Overweight (x) 4 | . 1 . . . 1 1 2 4 3 1 1 1 3 1 1 . . . Average Overweight (x) . | . . . . . . . . . . . . . . . . . . . Largest Inventory Capacity 20 | 8 20 20 20 20 20 20 20 20 20 20 20 20 20 20 20 5 5 5 Average Capacity 19 | 6 18 20 20 20 20 20 20 20 20 20 20 20 20 20 19 5 5 5 Most Carried 20 | 4 19 20 20 20 20 20 20 20 20 20 20 20 20 20 20 5 5 5 Average Carried 18 | 1 9 19 19 20 19 18 18 18 18 19 19 19 19 19 16 5 4 4 Final Capacity 20 | 8 20 20 20 20 20 20 20 20 20 20 20 20 20 20 5 5 5 5 Final Carried 20 | 2 19 19 20 20 20 20 20 20 20 20 20 19 19 20 5 5 5 5 Scrap Suit Usage (%) 1 | . . . . . . . 2 . . . . . . . . . . . Class Distribution -------------------- 38% | Scavenger-Tank 18% | Scavenger-Mutant 18% | Mutant 7% | Bothacker-Tank 7% | Commander-Tank 3% | Commander-Mutant Dominant Class ---------------- Mutant | -10/Materials Mutant | -9/Materials Commander-Mutant | -9/Storage Scavenger-Mutant | -9/Recycling Scavenger-Mutant | -9/Scraptown Scavenger-Tank | -6/Factory Scavenger-Tank | -6/Garrison Bothacker-Tank | -6/Factory Scavenger-Tank | -6/Extension Scavenger-Tank | -6/Cetus Scavenger-Tank | -6/Archives Scavenger-Tank | -6/Hub_04(d) Scavenger-Tank | -5/Factory Scavenger-Tank | -5/Garrison Commander-Tank | -4/Factory Hacker-Mutant | -3/Research Hacker-Mutant | -2/Research Hacker-Mutant | -1/Access Resources | -11 -10 -9 -9 -9 -9 -6 -6 -6 -6 -6 -6 -6 -5 -5 -4 -3 -2 -1 ----------- Run | Yrd Mat Mat Sto Rec Scr Fac Gar Fac Ext Cet Arc Hub Fac Gar Fac Res Res Acc Matter Collected 5003 | 170 462 287 140 . 210 889 222 135 360 95 116 75 412 497 932 . . 1 Remotely . | . . . . . . . . . . . . . . . . . . . Salvage Created 17326 | . 548 1431 699 244 . 1444 1964 1970 1121 62 345 1101 2636 1932 1829 . . . Parts 739 | . 45 84 31 14 . 70 64 102 40 2 16 39 101 68 63 . . . Haulers Intercepted 19 | . 2 6 3 . . 2 . . . . . 2 4 . . . . . Recyclers Shooed 5 | . . . 1 . . . . 4 . . . . . . . . . . Parts Field Recycled . | . . . . . . . . . . . . . . . . . . . Retrieved Matter . | . . . . . . . . . . . . . . . . . . . Parts Self-Destructed . | . . . . . . . . . . . . . . . . . . . Prevented . | . . . . . . . . . . . . . . . . . . . Parts Restored . | . . . . . . . . . . . . . . . . . . . Kills | -11 -10 -9 -9 -9 -9 -6 -6 -6 -6 -6 -6 -6 -5 -5 -4 -3 -2 -1 ------- Run | Yrd Mat Mat Sto Rec Scr Fac Gar Fac Ext Cet Arc Hub Fac Gar Fac Res Res Acc Combat Hostiles Destroyed 263 | . 14 27 12 3 . 24 17 30 14 1 2 11 38 28 42 . . . Melee 3 | . . . 1 . . . . 1 . . . . . 1 . . . . Guns 37 | . 14 . . . . 1 . . 1 1 1 3 5 9 2 . . . Cannons 148 | . . 24 11 2 . 17 15 19 9 . . 6 21 12 12 . . . AOE 48 | . . 3 . . . 1 . 4 . . . . 9 3 28 . . . Classes Destroyed 22 | . 5 4 1 . . 2 2 4 . . . 2 . . 2 . . . Worker 12 | . . 1 . . . 3 . 2 . . . 2 3 . 1 . . . Builder 11 | . 2 . . . . . . 5 2 . . . 1 . 1 . . . Tunneler 1 | . . . . . . . . . . . . 1 . . . . . . Hauler 19 | . 2 6 3 . . 2 . . . . . 2 4 . . . . . Recycler 3 | . . . 1 1 . . . . 1 . . . . . . . . . Mechanic 3 | . . . . . . . . 1 . . . . . . 2 . . . Operator 14 | . . 3 1 . . . . 1 2 . 6 1 . . . . . . Watcher 17 | . 3 3 . . . . . 1 2 . . 1 4 . 3 . . . Swarmer 47 | . 9 7 2 . . 4 6 2 . . . . 4 11 2 . . . Cutter 1 | . . . . . . . . . . . . 1 . . . . . . Saboteur 6 | . . . . . . . . 1 . . . . 1 . 4 . . . Grunt 100 | . 5 15 5 . . 10 . 11 5 . . 5 15 9 20 . . . Brawler 12 | . . . . . . . 4 1 . . . . 2 1 4 . . . Duelist 6 | . . 1 . . . 1 . 1 1 . . . . . 2 . . . Protector 2 | . . . . . . . . . . . . . . . 2 . . . Sentry 34 | . . 4 5 3 . 2 3 1 4 . 2 4 1 3 2 . . . Demolisher 1 | . . . . . . . . 1 . . . . . . . . . . Specialist 2 | . . . . . . . . . . . . . . . 2 . . . Hunter 21 | . . . . . . 4 1 8 1 . . 1 1 4 1 . . . Programmer 26 | . . . . . . 3 2 3 . . . . 13 1 4 . . . Behemoth 5 | . . . . . . . 1 1 2 . . . 1 . . . . . Cetus Guard 1 | . . . . . . . . . . 1 . . . . . . . . Enhanced Grunt 3 | . . . . . . . . . . . . . 3 . . . . . Scrapoid 1 | . . . . . . . . 1 . . . . . . . . . . Thug 2 | . . . . . . . . . . . . 1 . . 1 . . . Savage 2 | . . . . . . . 1 . 1 . . . . . . . . . Guerrilla 2 | . . . . . . . . . . . . 2 . . . . . . Best Kill Streak 22 | . 10 10 9 1 . 4 5 6 4 1 3 4 11 8 22 . . . Combat Bots Only 19 | . 8 9 8 1 . 4 5 5 3 1 2 2 7 8 19 . . . Max Kills in Single Turn 13 | . 1 2 2 1 . 3 2 3 2 1 1 6 13 3 3 . . . Gunslinging . | . . . . . . . . . . . . . . . . . . . Exploded 4 | . . 2 . . . 1 . 2 . . . . 4 3 2 . . . Melee 1 | . . . 1 . . . . 1 . . . . . 1 . . . . Uniques/NPCs Destroyed . | . . . . . . . . . . . . . . . . . . . Combat | -11 -10 -9 -9 -9 -9 -6 -6 -6 -6 -6 -6 -6 -5 -5 -4 -3 -2 -1 -------- Run | Yrd Mat Mat Sto Rec Scr Fac Gar Fac Ext Cet Arc Hub Fac Gar Fac Res Res Acc Hostile Shots Fired 1740 | . 61 96 44 8 . 177 93 149 120 22 3 66 195 209 300 38 . 159 Missed 572 | . 15 28 15 3 . 54 35 48 42 8 . 22 71 50 91 18 . 72 Hits 1168 | . 46 68 29 5 . 123 58 101 78 14 3 44 124 159 209 20 . 87 Melee 16 | . . 2 . . . 3 1 1 . . . . 1 4 2 . . 2 Projectile 1152 | . 46 66 29 5 . 120 57 100 78 14 3 44 123 155 207 20 . 85 AOE 2 | . . . . . . . . . 1 . . 1 . . . . . . Critical Strikes 50 | . 1 . 1 1 . 7 2 5 1 2 . 2 8 3 13 1 . 3 Part Disruptions 6 | . . . . . . . . . . . . . . . 6 . . . Damage Taken 20216 | . 400 838 424 73 . 2014 827 1737 1088 256 70 646 3038 2243 4040 457 . 2065 Core 3957 | . 73 162 88 17 . 268 62 121 113 10 . 161 317 158 503 299 . 1605 Absorbed by Shields 1090 | . . . . . . . . . 89 110 . . . 514 377 . . . Redirected to Shielding 16 | . 16 . . . . . . . . . . . . . . . . . Ignored by Resistances 848 | . . . . . . 200 34 60 121 . . . . 81 352 . . . Regen/Repaired (Parts) 790 | . . . . . . . . 110 67 . . . 613 . . . . . Core Remaining (%) 62 | 100 70 . . . 33 . . . . . . 13 . 52 56 77 100 . Volleys Fired 756 | . 57 85 40 8 . 61 74 67 61 11 21 29 84 87 68 . . 3 Largest 4 | . 2 2 2 2 . 3 3 3 3 3 3 3 3 3 4 . . 1 Hottest 301 | . 70 120 128 128 . 225 105 105 185 197 197 261 265 265 301 . . 65 Shots Fired 1852 | . 112 168 79 16 . 156 218 195 146 33 63 86 221 219 137 . . 3 Gun 425 | . 112 . . . . 7 . . 41 22 42 25 61 98 14 . . 3 Cannon 1381 | . . 166 79 16 . 149 216 193 102 11 21 61 158 119 90 . . . Launcher 32 | . . 2 . . . . . . . . . . 2 2 26 . . . Special 14 | . . . . . . . 2 2 3 . . . . . 7 . . . Kinetic 161 | . 57 . . . . 7 . . 8 . . . . 21 68 . . . Thermal 1645 | . 55 166 79 16 . 149 216 193 135 33 63 86 219 196 36 . . 3 Explosive 32 | . . 2 . . . . . . . . . . 2 2 26 . . . Electromagnetic . | . . . . . . . . . . . . . . . . . . . Robot Hit Streak 28 | . 6 11 21 10 . 17 21 19 18 7 6 18 14 28 14 . . . Robot Miss Streak 6 | . 5 5 2 1 . 3 4 4 4 3 4 3 4 3 6 . . 2 Penetration Max . | . . . . . . . . . . . . . . . . . . . Secondary Targets 1 | . . . . . . . . . . . . . . 1 . . . . Max Gunslinging Chain 1 | . . . . . . . . . . . . . . 1 . . . . Shots Hit Robots 1140 | . 55 99 46 12 . 98 145 115 98 23 37 58 138 144 68 4 . . Core Hits 615 | . 29 50 16 7 . 49 46 57 33 10 17 34 71 59 136 . . 1 Critical Kills 22 | . 1 . 1 1 . 3 2 5 . . 1 2 2 4 . . . . Critical Parts Destroyed . | . . . . . . . . . . . . . . . . . . . Critical Strikes 48 | . 6 . 1 1 . 3 2 5 4 . 5 2 7 10 2 . . . Burn 21 | . 5 . . . . . . . 3 . 4 . 5 4 . . . . Meltdown 21 | . . . 1 1 . 3 2 5 . . 1 2 2 4 . . . . Destroy 1 | . 1 . . . . . . . . . . . . . . . . . Blast 5 | . . . . . . . . . 1 . . . . 2 2 . . . Melee Attacks 25 | . . . . . . . . . . . 4 . 2 15 . 4 . . Impact . | . . . . . . . . . . . . . . . . . . . Slashing . | . . . . . . . . . . . . . . . . . . . Piercing . | . . . . . . . . . . . . . . . . . . . Sneak Attacks 17 | . . . . . . . . . . . 4 . . 9 . 4 . . Combat Hostiles . | . . . . . . . . . . . . . . . . . . . Follow-up Attacks . | . . . . . . . . . . . . . . . . . . . Damage Inflicted 45567 | . 741 1971 934 270 . 3217 4958 4727 3234 649 955 2798 6692 4413 9952 20 . 36 Guns 5609 | . 716 . . . . 60 . . 614 390 665 488 859 1483 305 . . 29 Cannons 26858 | . . 1749 907 228 . 2360 4958 4275 2597 259 290 1291 3426 2509 2009 . . . Explosions 12797 | . . 166 . . . 729 . 433 . . . 1008 2407 419 7635 . . . Melee . | . . . . . . . . . . . . . . . . . . . Ramming 303 | . 25 56 27 42 . 68 . 19 23 . . 11 . 2 3 20 . 7 Kinetic 2114 | . 343 . . . . 60 . . 173 . . . . 341 1197 . . . Thermal 33202 | . 373 1749 907 228 . 2360 4958 4429 3038 649 955 1779 6244 3651 1853 . . 29 Explosive 8749 | . . 166 . . . 729 . 279 . . . . 392 419 6764 . . . Electromagnetic 1199 | . . . . . . . . . . . . 1008 56 . 135 . . . Impact . | . . . . . . . . . . . . . . . . . . . Slashing . | . . . . . . . . . . . . . . . . . . . Piercing . | . . . . . . . . . . . . . . . . . . . Highest Corruption 14 | . . . . . . 2 2 2 3 3 3 2 5 2 14 . . . Average Corruption 2 | . . . . . . 1 1 1 2 3 2 2 2 1 6 . . . Corruption Purged 10 | . . . . . . . 2 . . . 3 . 5 . . . . . Corruption Blocked . | . . . . . . . . . . . . . . . . . . . Effects 111 | . . . . . . 8 14 11 27 8 8 2 21 6 6 . . . Message Errors 18 | . . . . . . 1 7 2 3 . 1 . 3 . 1 . . . Matter Fused 27 | . . . . . . 4 2 . 8 1 1 . 7 1 3 . . . Heat Flow Errors 10 | . . . . . . . 1 1 6 . . . . 2 . . . . Energy Discharges 16 | . . . . . . 1 2 3 1 2 3 1 3 . . . . . Parts Fused 2 | . . . . . . . . 1 . . 1 . . . . . . . Data Loss (minor) 19 | . . . . . . . 1 2 5 1 1 1 4 3 1 . . . Data Loss (major) 5 | . . . . . . 1 1 . . 1 1 . 1 . . . . . Misfires 5 | . . . . . . 1 . 1 1 1 . . 1 . . . . . Alerts 2 | . . . . . . . . . 1 1 . . . . . . . . Misdirections 1 | . . . . . . . . . . . . . . . 1 . . . Weapon Failures 6 | . . . . . . . . 1 2 1 . . 2 . . . . . Overload Shots 4 | . . . . . . . . . 4 . . . . . . . . . Overflow Damage 1302 | . . 16 . . . 69 118 61 73 . 44 73 489 41 318 . . . Projectiles 516 | . . 6 . . . 27 118 21 73 . 44 . 126 29 72 . . . Explosions 778 | . . 8 . . . 36 . 40 . . . 73 363 12 246 . . . Melee 8 | . . 2 . . . 6 . . . . . . . . . . . . Knockbacks 8 | . . 1 . . . 1 . . . . . . . . 6 . . . Impact 2 | . . 1 . . . 1 . . . . . . . . . . . . Kinetic 6 | . . . . . . . . . . . . . . . 6 . . . Secondary . | . . . . . . . . . . . . . . . . . . . Self-Inflicted Damage 1053 | . . . . . . 142 . 67 . . . 106 621 43 62 9 . 3 Shots 17 | . . . . . . 2 . 1 . . . 1 9 1 3 . . . Rammed 45 | . 5 7 4 7 . 3 . 6 3 . . 2 . . 1 4 . 3 Targets Rammed 51 | . 5 7 5 7 . 7 . 6 3 . . 2 . 1 1 4 . 3 Kicked 4 | . . . . . . 4 . . . . . . . . . . . . Crushed 2 | . . . 1 . . . . . . . . . . 1 . . . . Highest Temperature 307 | . 192 30 . . . 53 . 32 307 . . . 271 252 87 . . . Average Temperature 75 | . 45 20 . . . 28 . 32 151 . . . 71 116 31 . . . Received Heat Transfer 3534 | . 72 282 120 45 . 609 96 357 286 20 . 213 532 322 436 54 . 90 Siege Activations . | . . . . . . . . . . . . . . . . . . . Martial Activations . | . . . . . . . . . . . . . . . . . . . Shielding Activations . | . . . . . . . . . . . . . . . . . . . Robots Disrupted . | . . . . . . . . . . . . . . . . . . . Combat Hostiles . | . . . . . . . . . . . . . . . . . . . Robots Corrupted . | . . . . . . . . . . . . . . . . . . . Combat Hostiles . | . . . . . . . . . . . . . . . . . . . Parts Fried 2 | . . . . . . . . 1 . . . 1 . . . . . . Impact Corruptions 2 | . . 1 . . . 1 . . . . . . . . . . . . Robots Melted 39 | . . . 1 1 . 5 6 7 4 . 1 3 4 7 . . . . Combat Hostiles 26 | . . . . 1 . 5 2 6 4 . 1 2 2 3 . . . . Parts Melted 165 | . 3 8 6 2 . 8 32 26 11 . 8 10 29 21 1 . . . Heat Transferred 51102 | . 1480 3700 1776 444 . 3812 7550 6099 4902 1010 1782 2777 8544 5738 1451 . . 37 Parts Sabotaged 2 | . . . . . . . . 2 . . . . . . . . . . Parts Stolen . | . . . . . . . . . . . . . . . . . . . Parts Stripped . | . . . . . . . . . . . . . . . . . . . Power Chain Reactions 2 | . . . . . . . . . . . . 1 . . 1 . . . Alert | -11 -10 -9 -9 -9 -9 -6 -6 -6 -6 -6 -6 -6 -5 -5 -4 -3 -2 -1 ------- Run | Yrd Mat Mat Sto Rec Scr Fac Gar Fac Ext Cet Arc Hub Fac Gar Fac Res Res Acc Maximum Alert Level 5 | . 1 1 2 1 . 2 4 4 2 2 1 4 4 5 5 5 4 2 Low Security (%) 25 | 100 74 55 27 94 . 50 . . . . 43 14 . . . . . . Level 1 15 | . 25 44 2 5 . 38 4 . 13 64 56 11 . . . . . . Level 2 25 | . . . 70 . . 11 22 41 86 35 . 42 44 . . . . 100 Level 3 15 | . . . . . . . 58 38 . . . 22 41 9 24 . 25 . Level 4 11 | . . . . . . . 13 20 . . . 8 14 49 25 . 74 . Level 5 5 | . . . . . . . . . . . . . . 41 9 100 . . High Security 1 | . . . . . . . . . . . . . . . 40 . . . Max Security . | . . . . . . . . . . . . . . . . . . . Peak Influence 4082 | . 293 356 597 235 . 554 1120 1185 649 468 321 1251 1343 2189 4082 2142 1140 670 Initial 2142 | . . 11 130 211 . . 382 588 562 343 150 32 611 934 1148 2142 1140 658 Average 648 | . 121 181 389 85 . 218 814 801 516 377 211 619 815 1529 2060 2094 1114 620 Influence Increases 16346 | . 449 879 907 273 . 1287 838 1301 780 325 284 1625 2200 1385 3568 15 38 192 Destroy 0b10 Robot/C 6920 | . 280 540 440 80 . 640 400 720 380 140 80 440 820 660 1300 . . . Destroy 0b10 Robot/NC 540 | . 35 65 35 5 . 30 45 50 35 5 30 65 60 30 50 . . . Destroy Leader 1322 | . 50 148 140 . . 156 50 162 64 10 . 120 186 50 186 . . . Allied During Kill 2652 | . . . 236 14 . 96 51 113 184 132 110 609 103 136 868 . . . Successful Hack 333 | . 22 23 11 24 . 4 12 12 50 21 . 30 77 . 12 . 8 27 Select Force Hacks 150 | . . . . 150 . . . . . . . . . . . . . . Disable Machine 1425 | . . . 45 . . 135 15 120 15 15 60 195 540 . 270 . . 15 Anti-Garrison Action 950 | . . . . . . 150 250 . . . . . . 400 150 . . . Destroy Structure 1379 | . 2 13 . . . 61 15 94 22 2 4 166 414 94 492 . . . Partial Spotted 60 | . . . . . . . . 15 . . . . . . . . 30 15 Lose Combat Pursuer 615 | . 60 90 . . . 15 . 15 30 . . . . 15 240 15 . 135 Influence Decreases 15696 | . 420 600 672 816 . 741 264 1272 1316 562 568 468 2114 531 1675 2070 967 640 Entered New Map 7714 | . . 18 178 332 . . 164 532 587 270 226 60 638 401 1041 1940 887 440 Time Decay 5611 | . 420 582 404 464 . 510 . 530 589 222 342 318 686 . 254 90 80 120 Lost Part 810 | . . . 10 . . 100 20 30 80 10 . 20 120 90 210 40 . 80 Lost Ally 961 | . . . 80 20 . 131 80 180 60 60 . 70 70 40 170 . . . Purge Threat 600 | . . . . . . . . . . . . . 600 . . . . . Squads Dispatched 89 | . 1 4 3 . . 15 . 13 4 1 . 7 13 . 22 . 1 5 Investigation 16 | . 1 2 . . . 4 . 3 1 1 . . 2 . 1 . . 1 Extermination 14 | . . . . . . 3 . 2 . . . 1 6 . 1 . . 1 Reinforcement 23 | . . 2 2 . . 3 . 1 3 . . 5 3 . 2 . 1 1 Assault 27 | . . . . . . 2 . 4 . . . . 2 . 17 . . 2 Garrison 9 | . . . 1 . . 3 . 3 . . . 1 . . 1 . . . Intercept . | . . . . . . . . . . . . . . . . . . . Searches Triggered . | . . . . . . . . . . . . . . . . . . . Construction Impeded 6 | . . . . . . 2 . . 1 . . 1 1 . 1 . . . Haulers Reinforced 4 | . . . . . . 1 . . . . . 2 1 . . . . . Active Scanning Responses . | . . . . . . . . . . . . . . . . . . . Cargo Convoy Interrupts 1 | . . . . . . . . 1 . . . . . . . . . . Stealth | -11 -10 -9 -9 -9 -9 -6 -6 -6 -6 -6 -6 -6 -5 -5 -4 -3 -2 -1 --------- Run | Yrd Mat Mat Sto Rec Scr Fac Gar Fac Ext Cet Arc Hub Fac Gar Fac Res Res Acc Distress Signals 27 | . 3 7 3 . . 1 . 3 3 1 . 2 1 . 2 . 1 . Communications Jammed . | . . . . . . . . . . . . . . . . . . . Distress Signals . | . . . . . . . . . . . . . . . . . . . Times Spotted 532 | . 28 42 23 3 . 38 18 48 30 7 17 25 61 40 110 14 1 27 Peak Tracking Total 17 | . 7 7 3 1 . 4 4 9 4 5 1 5 7 7 16 15 2 17 Tactical Retreats 20 | . 3 4 . . . 1 . 1 1 . . . . 1 5 1 . 3 Traps | -11 -10 -9 -9 -9 -9 -6 -6 -6 -6 -6 -6 -6 -5 -5 -4 -3 -2 -1 ------- Run | Yrd Mat Mat Sto Rec Scr Fac Gar Fac Ext Cet Arc Hub Fac Gar Fac Res Res Acc Traps Triggered 9 | . 1 1 . . . 1 . . . . . . . 3 1 . . 2 Indirectly . | . . . . . . . . . . . . . . . . . . . Trap Hack Attempts . | . . . . . . . . . . . . . . . . . . . Triggered . | . . . . . . . . . . . . . . . . . . . Disarmed . | . . . . . . . . . . . . . . . . . . . Reprogrammed . | . . . . . . . . . . . . . . . . . . . Reused . | . . . . . . . . . . . . . . . . . . . Traps Extracted . | . . . . . . . . . . . . . . . . . . . Installed . | . . . . . . . . . . . . . . . . . . . Triggered . | . . . . . . . . . . . . . . . . . . . Machines | -11 -10 -9 -9 -9 -9 -6 -6 -6 -6 -6 -6 -6 -5 -5 -4 -3 -2 -1 ---------- Run | Yrd Mat Mat Sto Rec Scr Fac Gar Fac Ext Cet Arc Hub Fac Gar Fac Res Res Acc Machines Disabled 107 | . . 1 3 . . 10 4 8 2 2 4 13 36 4 19 . . 1 Max in Single Turn 15 | . . 1 1 . . 4 1 4 1 1 1 8 15 1 6 . . 1 Garrison Access 2 | . . . . . . 1 . . . . . . . . 1 . . . Garrison Relay 8 | . . . . . . . 3 . . . . . . 5 . . . . Network Hub 1 | . . . . . . . . . . . . 1 . . . . . . Energy Cycler 1 | . . . . . . . . . 1 . . . . . . . . . Machines Repaired . | . . . . . . . . . . . . . . . . . . . Machines Dismantled . | . . . . . . . . . . . . . . . . . . . Machines Sabotaged . | . . . . . . . . . . . . . . . . . . . Overloaded Fab Kills . | . . . . . . . . . . . . . . . . . . . Hacking | -11 -10 -9 -9 -9 -9 -6 -6 -6 -6 -6 -6 -6 -5 -5 -4 -3 -2 -1 --------- Run | Yrd Mat Mat Sto Rec Scr Fac Gar Fac Ext Cet Arc Hub Fac Gar Fac Res Res Acc Machines Accessed 98 | . 6 10 6 12 4 6 2 5 11 3 1 3 14 3 3 2 2 5 Terminals 61 | . 6 9 6 6 . 1 2 1 9 3 . 2 8 3 . 1 1 3 Fabricators 2 | . . . . . . . . . . . . . 1 . . . . 1 Repair Stations 4 | . . . . . . . . 1 1 . . . 1 . 1 . . . Recycling Units 15 | . . . . 6 . 4 . 2 1 . . . 1 . 1 . . . Scanalyzers 5 | . . 1 . . . . . . . . . . 1 . 1 1 1 . Garrison Access 6 | . . . . . . 1 . 1 . . . 1 2 . . . . 1 Total Hacks 321 | . 19 30 16 27 6 10 5 11 35 14 25 12 78 4 11 5 5 8 Successful 175 | . 9 16 9 16 6 6 2 9 16 4 25 9 38 1 2 3 2 2 Failed 145 | . 10 14 7 11 . 4 3 2 19 10 . 3 40 3 8 2 3 6 Catastrophic 31 | . 2 2 2 . . 1 . . 1 2 . . 11 2 1 2 2 3 Database Lockouts 1 | . . . . . . . . . . . . . . . 1 . . . Manual 181 | . 19 22 16 22 . 8 . 4 23 1 1 9 45 3 1 2 4 1 Terminals 215 | . 19 25 16 19 . 3 5 2 32 14 . 11 54 4 . 2 4 5 Fabricators 4 | . . . . . . . . . . . . . 2 . . . . 2 Repair Stations 18 | . . . . . . . . 4 2 . . . 7 . 5 . . . Recycling Units 25 | . . . . 8 . 5 . 4 1 . . . 4 . 3 . . . Scanalyzers 21 | . . 5 . . . . . . . . . . 9 . 3 3 1 . Garrison Access 7 | . . . . . . 2 . 1 . . . 1 2 . . . . 1 Terminal Hacks 77 | . 1 4 3 4 6 . 2 1 5 4 25 4 15 1 . . 1 1 Record 34 | . . . . . 5 . . . . 4 25 . . . . . . . Part Schematic 5 | . . . 1 2 . . . . . . . . 2 . . . . . Prototype ID Bank 3 | . . 1 . . . . . . . . . . 2 . . . . . Open Door 6 | . . . 2 . . . 1 1 1 . . . . 1 . . . . Level Access Points 1 | . . . . . . . . . . . . . . . . . . 1 Branch Access Points 2 | . . 1 . . . . . . 1 . . . . . . . . . Emergency Access Points 1 | . . . . . . . . . . . . . 1 . . . . . Terminal Index 6 | . 1 1 . 1 . . . . 1 . . 1 1 . . . . . Repair Station Index 1 | . . . . . . . . . . . . . 1 . . . . . Scanalyzer Index 1 | . . . . 1 . . . . . . . . . . . . . . Garrison Index 1 | . . . . . . . . . . . . . 1 . . . . . Unreport Threat 4 | . . . . . . . . . . . . . 4 . . . . . Locate Traps 2 | . . . . . . . . . 2 . . . . . . . . . Reprogram Traps 1 | . . . . . . . . . . . . . 1 . . . . . Recall Reinforcements 1 | . . . . . . . . . . . . 1 . . . . . . Recall Assault 1 | . . . . . . . . . . . . 1 . . . . . . Hauler Manifests 1 | . . . . . . . . . . . . . 1 . . . . . Registered Components 2 | . . 1 . . . . . . . . . . . . . . 1 . Registered Prototypes 1 | . . . . . . . . . . . . . 1 . . . . . Zone Layout 1 | . . . . . . . . . . . . 1 . . . . . . Garrison Registry 1 | . . . . . . . 1 . . . . . . . . . . . Proto ID Catalog 1 | . . . . . 1 . . . . . . . . . . . . . Fabricator Hacks . | . . . . . . . . . . . . . . . . . . . Repair Station Hacks 12 | . . . . . . . . 3 2 . . . 6 . 1 . . . Scan Component 7 | . . . . . . . . 2 1 . . . 3 . 1 . . . Repair 5 | . . . . . . . . 1 1 . . . 3 . . . . . Recycling Unit Hacks 2 | . . . . . . . . 1 . . . . 1 . . . . . Retrieve Components 2 | . . . . . . . . 1 . . . . 1 . . . . . Scanalyzer 13 | . . 4 . . . . . . . . . . 5 . 1 3 . . Insert Component 1 | . . . . . . . . . . . . . 1 . . . . . Analyze 2 | . . . . . . . . . . . . . 2 . . . . . Retrieve Study 10 | . . 4 . . . . . . . . . . 2 . 1 3 . . Garrison Access Hacks 3 | . . . . . . 1 . . . . . . 1 . . . . 1 Unlock Access 3 | . . . . . . 1 . . . . . . 1 . . . . 1 Unauthorized Hacks 67 | . 8 8 6 12 . 5 . 3 9 . . 5 10 . . . 1 . Terminals 52 | . 8 8 6 7 . 2 . . 8 . . 4 8 . . . 1 . Botnet 13 | . 2 2 1 2 . 1 . . 2 . . 1 2 . . . . . Operators 6 | . 1 1 1 . . . . . . . . 1 1 . . . 1 . Skim 33 | . 5 5 4 5 . 1 . . 6 . . 2 5 . . . . . Fabricators . | . . . . . . . . . . . . . . . . . . . Repair Stations . | . . . . . . . . . . . . . . . . . . . Recycling Units 12 | . . . . 5 . 3 . 2 1 . . . 1 . . . . . Tunnel 5 | . . . . 5 . . . . . . . . . . . . . . Fedlink 3 | . . . . . . 1 . . 1 . . . 1 . . . . . Scrapoids 4 | . . . . . . 2 . 2 . . . . . . . . . . Scanalyzers . | . . . . . . . . . . . . . . . . . . . Garrison Access 3 | . . . . . . . . 1 . . . 1 1 . . . . . Reprogram 3 | . . . . . . . . 1 . . . 1 1 . . . . . Data Cores Recovered 2 | . . 1 . . . . . . . . . 1 . . . . . . Used . | . . . . . . . . . . . . . . . . . . . Hacking Detections 68 | . 5 10 5 6 . 2 1 1 8 2 . 2 12 3 3 2 1 5 Full Trace Events 6 | . . 1 . 2 . 1 . . . 1 . . . . 1 . . . Feedback Events . | . . . . . . . . . . . . . . . . . . . Feedback Blocked . | . . . . . . . . . . . . . . . . . . . Robot Schematics Acquired . | . . . . . . . . . . . . . . . . . . . Robots Built . | . . . . . . . . . . . . . . . . . . . Authchips . | . . . . . . . . . . . . . . . . . . . Time . | . . . . . . . . . . . . . . . . . . . Total Robot Build Rating . | . . . . . . . . . . . . . . . . . . . Part Schematics Acquired 6 | . . . 1 2 . . . . . . . . 3 . . . . . Parts Built . | . . . . . . . . . . . . . . . . . . . Authchips . | . . . . . . . . . . . . . . . . . . . Time . | . . . . . . . . . . . . . . . . . . . Total Part Build Rating . | . . . . . . . . . . . . . . . . . . . Part Studies Acquired 7 | . . 2 . . . . . . . . . . 2 . 1 2 . . Parts Repaired 5 | . . . . . . . . 1 1 . . . 3 . . . . . Time 292 | . . . . . . . . 80 38 . . . 174 . . . . . Parts Recycled . | . . . . . . . . . . . . . . . . . . . Recycled Matter . | . . . . . . . . . . . . . . . . . . . Retrieved Matter . | . . . . . . . . . . . . . . . . . . . Retrieved Components 13 | . . . . . . . . 6 . . . . 7 . . . . . Parts Scanalyzed 1 | . . . . . . . . . . . . . 1 . . . . . Part Schematics Acquired 1 | . . . . . . . . . . . . . 1 . . . . . Parts Damaged . | . . . . . . . . . . . . . . . . . . . Bothacking | -11 -10 -9 -9 -9 -9 -6 -6 -6 -6 -6 -6 -6 -5 -5 -4 -3 -2 -1 ------------ Run | Yrd Mat Mat Sto Rec Scr Fac Gar Fac Ext Cet Arc Hub Fac Gar Fac Res Res Acc Used RIF Installer 2 | . . . . . . . 1 . . . . . . 1 . . . . Program Shield 1 | . . . . . . . . . . . . . . 1 . . . . Robots Hacked 22 | . . . . . . . . 2 2 . 4 . 2 5 6 1 . . Non-combat 6 | . . . . . . . . . . . 4 . . . 1 1 . . Combat 16 | . . . . . . . . 2 2 . . . 2 5 5 . . . Robot Hacks Applied 24 | . . . . . . . . 2 2 . 4 . 2 5 7 2 . . parse_system 1 | . . . . . . . . . . . . . . . . 1 . . no_distress 1 | . . . . . . . . . . . . . . . . 1 . . find_recycling 1 | . . . . . . . . . . . . . . . 1 . . . spike_heat 1 | . . . . . . . . . . . . . . . 1 . . . reboot_system 1 | . . . . . . . . . . . . . . . 1 . . . overwrite_iff 1 | . . . . . . . . . 1 . . . . . . . . . streamctrl_low 1 | . . . . . . . . . . . 1 . . . . . . . streamctrl_high 4 | . . . . . . . . 1 . . . . 1 2 . . . . formatsys_low 4 | . . . . . . . . . . . 3 . . . 1 . . . formatsys_high 9 | . . . . . . . . 1 1 . . . 1 3 3 . . . Relay Couplers Released 43 | . . . . . . 1 18 . . . . . 4 19 1 . . . Machine Destruction 35 | . . . . . . 1 14 . . . . . . 19 1 . . . Programmers 8 | . . . . . . . 4 . . . . . 4 . . . . . Attached 13 | . . . . . . . . 1 1 . 1 . 1 4 5 . . . Fabnet Peak Effective % . | . . . . . . . . . . . . . . . . . . . Robots Rewired 16 | . . . . . . . . . 7 . . . . 9 . . . . Allies Hacked 5 | . . . . . . . 1 1 . . . . 2 . 1 . . . Hacks Repelled 1 | . . . . . . . . . . . . . . . 1 . . . Allies | -11 -10 -9 -9 -9 -9 -6 -6 -6 -6 -6 -6 -6 -5 -5 -4 -3 -2 -1 -------- Run | Yrd Mat Mat Sto Rec Scr Fac Gar Fac Ext Cet Arc Hub Fac Gar Fac Res Res Acc Total Allies 82 | . . . 10 . . 10 2 13 15 5 4 . 5 14 4 . . . Largest Group 14 | . . . 10 4 3 5 4 8 12 12 14 13 3 10 12 . . . Highest-Rated Group 728 | . . . 88 32 24 140 112 227 512 710 728 683 269 429 534 . . . Highest-Rated Ally 153 | . . . 16 8 8 28 46 46 153 153 153 96 91 49 58 . . . Initial UFD Resources 50 | . . . . . . 22 26 26 20 24 24 24 27 37 40 43 46 50 Total Orders . | . . . . . . . . . . . . . . . . . . . Ally Attacks 699 | . . . 70 14 . 72 45 70 43 39 13 101 24 34 174 . . . Total Damage 16502 | . . . 618 115 . 1015 737 1282 801 976 356 2970 703 1232 5697 . . . Kills 105 | . . . 12 1 . 9 3 6 5 10 2 20 3 5 29 . . . Allies Corrupted 5 | . . . 1 . . . 1 1 . . . . 1 1 . . . . Allies Melted . | . . . . . . . . . . . . . . . . . . . Intel | -11 -10 -9 -9 -9 -9 -6 -6 -6 -6 -6 -6 -6 -5 -5 -4 -3 -2 -1 ------- Run | Yrd Mat Mat Sto Rec Scr Fac Gar Fac Ext Cet Arc Hub Fac Gar Fac Res Res Acc Active Infowar (turns) 13414 | . . . . . . 1479 1391 1495 1851 461 777 716 2750 2051 442 . . 1 Sensors 1 | . . . . . . . . . . . . . . . . . . 1 IFF 2334 | . . . . . . . . . . . . . 2334 . . . . . Decoding 13413 | . . . . . . 1479 1391 1495 1851 461 777 716 2750 2051 442 . . . Robot Analysis Total . | . . . . . . . . . . . . . . . . . . . Derelict Logs Recovered . | . . . . . . . . . . . . . . . . . . . Drone Launches . | . . . . . . . . . . . . . . . . . . . Drone Recoveries . | . . . . . . . . . . . . . . . . . . . Decoded 0b10 Intel 322 | . . . . . . 38 29 38 42 6 3 22 75 57 12 . . . Traps 60 | . . . . . . 5 15 5 6 . . 2 11 13 3 . . . Emergency Access 14 | . . . . . . 2 1 2 1 . . 1 5 2 . . . . Items 183 | . . . . . . 27 9 23 21 1 . 12 49 35 6 . . . Machines 24 | . . . . . . 2 2 2 5 4 1 1 3 3 1 . . . Patrols 20 | . . . . . . 2 . 1 6 . . 1 6 3 1 . . . Guards 12 | . . . . . . . 1 3 2 . . 4 1 . 1 . . . Exits 9 | . . . . . . . 1 2 1 1 2 1 . 1 . . . . Exploration | -11 -10 -9 -9 -9 -9 -6 -6 -6 -6 -6 -6 -6 -5 -5 -4 -3 -2 -1 ------------- Run | Yrd Mat Mat Sto Rec Scr Fac Gar Fac Ext Cet Arc Hub Fac Gar Fac Res Res Acc Turns Passed 23072 | 74 1783 2012 969 1476 2250 1484 1391 1495 1851 461 777 716 2750 2051 923 191 166 252 Spaces Moved 12171 | 44 695 1036 508 890 1361 679 672 671 861 224 386 315 1250 956 451 353 326 493 Core 975 | 8 . . . . . . . . . . . . . . 47 304 326 290 Treads 10357 | 36 695 1036 508 890 1361 358 625 666 858 224 386 315 1148 847 404 . . . Legs 587 | . . . . . . 321 47 5 3 . . . 102 109 . . . . Wheels . | . . . . . . . . . . . . . . . . . . . Hover 49 | . . . . . . . . . . . . . . . . 49 . . Flight 203 | . . . . . . . . . . . . . . . . . . 203 Fastest Speed 40 | 50 160 160 160 160 160 120 160 160 160 160 160 160 160 160 50 40 50 40 Average Speed 158 | 140 224 160 160 160 160 175 162 172 175 170 173 188 172 163 150 48 50 45 Slowest Speed 400 | 160 240 160 160 160 200 240 320 400 330 200 210 220 400 240 200 50 50 50 Overloaded Moves . | . . . . . . . . . . . . . . . . . . . Propulsion Burnouts . | . . . . . . . . . . . . . . . . . . . Robots Hopped 1 | . . . . . . . . . . . . . . . . . . 1 Potential Cave-ins 6 | . . . . . . . . . . . . . . 2 4 . . . Cave-ins Triggered 1 | . . . . . . . . . . . . . . . 1 . . . Exploration Rate (%) 50 | 4 88 89 71 98 85 14 56 11 90 62 94 38 29 84 16 12 5 17 Regions Visited 18 Branch Regions 7 Pre-discovered Areas 16 | . 2 2 . 7 . . . . 4 . . . 1 . . . . . Known Exits Taken 11 | . 1 1 1 . . 1 . 1 1 1 1 1 1 . 1 . . . Unknown Exits Taken 5 | 1 . . . 1 1 . . . . . . . . . . 1 1 . Scrap Searched 2 | . . . . . 2 . . . . . . . . . . . . . Spaces Dug 36 | . . . . . . . . 9 5 . . . 7 9 6 . . . Terrain Destroyed 971 | . . 17 . . . 75 . 101 18 . 3 190 205 38 324 . . . Melee . | . . . . . . . . . . . . . . . . . . . Projectile 188 | . . . . . . 8 . 45 18 . 3 16 36 21 41 . . . AOE 783 | . . 17 . . . 67 . 56 . . . 174 169 17 283 . . . Terrain Rammed . | . . . . . . . . . . . . . . . . . . . Walls Destroyed . | . . . . . . . . . . . . . . . . . . . Machines Disabled . | . . . . . . . . . . . . . . . . . . . Actions | -11 -10 -9 -9 -9 -9 -6 -6 -6 -6 -6 -6 -6 -5 -5 -4 -3 -2 -1 --------- Run | Yrd Mat Mat Sto Rec Scr Fac Gar Fac Ext Cet Arc Hub Fac Gar Fac Res Res Acc Total 14484 | 57 800 1228 583 922 1435 856 812 857 1079 280 453 374 1676 1272 586 372 328 514 Wait 634 | . 8 23 . 15 41 16 1 83 58 20 11 14 266 43 13 9 1 12 Move 12149 | 43 694 1035 507 889 1360 678 670 670 860 223 385 314 1249 954 450 352 325 491 Hop 1 | . . . . . . . . . . . . . . . . . . 1 Pick Up 219 | 8 22 22 7 . 12 31 18 11 14 8 8 1 21 23 11 . 1 1 Fast Attach 64 | . . 8 2 . 2 11 4 2 2 2 5 4 9 8 . 3 . 2 Attach 127 | 6 5 3 3 . 3 16 11 8 15 1 2 1 18 14 20 . . 1 Detach 41 | . 4 . 1 . 1 5 8 1 5 . 5 . 4 4 3 . . . Swap 94 | . 1 12 9 . 2 3 7 5 10 5 4 3 9 14 10 . . . Drop 184 | . 4 33 9 . 14 26 19 4 8 10 7 6 14 21 8 . 1 . Fire 756 | . 57 85 40 8 . 61 74 67 61 11 21 29 84 87 68 . . 3 Melee 25 | . . . . . . . . . . . 4 . 2 15 . 4 . . Ram 7 | . . . . . . . . . . . . . . . . 4 . 3 Kick 4 | . . . . . . 4 . . . . . . . . . . . . Crush 39 | . 5 7 5 7 . 3 . 6 3 . . 2 . 1 . . . . Escape Stasis 11 | . . . . . . . . . . . . . . 10 1 . . . Rewire 129 | . . . . 3 . 2 . . 43 . 1 . . 78 2 . . . Trap . | . . . . . . . . . . . . . . . . . . . Miscellaneous . | . . . . . . . . . . . . . . . . . . . Route ------- -11/Scrapyard -10/Materials (discovered 5 exits: *Mat x3 / *Min / Sub) -9/Materials (discovered 7 exits: *Mat x3 / *Min x2 / *Sto x2) -9/Storage (discovered 2 exits: *Mat / *Rec) -9/Recycling (discovered 2 exits: [*Fac] / *Scr) -9/Scraptown -6/Factory (discovered 2 exits: *Low / Gar) -6/Garrison (discovered 3 exits: *Fac x3) -6/Factory (discovered 2 exits: Low / *Ext) -6/Extension (discovered 3 exits: *Fac x2 / *Cet) -6/Cetus (discovered 2 exits: Fac / *Arc) -6/Archives (discovered 3 exits: *Fac / *Hub x2) -6/Hub_04(d) (discovered 2 exits: *Fac x2) -5/Factory (discovered 3 exits: *Upp x2 / Gar) -5/Garrison (discovered 3 exits: *Fac x3) -4/Factory -3/Research (discovered 2 exits: *Res / [*Tes]) -2/Research -1/Access (discovered 2 exits: Sur / Gar) History --------- Turn | Location | Event 14 | -11/Scrapyard | Discovered new exit (range 15) 75 | -11/Scrapyard | Entered Materials 146 | -10/Materials | Discovered new exit (range 16) 313 | -10/Materials | Discovered new exit (range 8) 321 | -10/Materials | Build established: Mutant 613 | -10/Materials | Destroyed 8 combat bots 668 | -10/Materials | Discovered new exit (range 16) 1410 | -10/Materials | Identified exit to Subcaves 1477 | -10/Materials | Identified exit to Materials 1477 | -10/Materials | Identified exit to Mines 1532 | -10/Materials | Learned location of Storage (-9) 1617 | -10/Materials | Learned Storage emergency access door positions 1647 | -10/Materials | Learned location of Recycling (-9) 1738 | -10/Materials | Learned location of 1 exit from Storage 1790 | -10/Materials | Learned 2 Storage zone layouts 1853 | -10/Materials | Learned 2 Storage zone layouts 1858 | -10/Materials | Entered another Materials area 1858 | -9/Materials | Evolved 2 slots: Propulsion x1, Utility x1 1859 | -9/Materials | Discovered new exit (range 14) 2244 | -9/Materials | Discovered new exit (range 16) 2371 | -9/Materials | Discovered new exit (range 14) 2445 | -9/Materials | Destroyed 9 combat bots 2761 | -9/Materials | Discovered new exit (range 16) 3097 | -9/Materials | Identified exit to Mines 3097 | -9/Materials | Identified exit to Storage 3364 | -9/Materials | Identified exit to Materials 3364 | -9/Materials | Learned location of 1 exit from Materials 3637 | -9/Materials | Learned location of Zion (-6) 3870 | -9/Materials | Entered Storage 3871 | -9/Storage | Identified exit to Recycling 4020 | -9/Storage | Assisted by bots powering up and referring to "LRC-V3" 4103 | -9/Storage | Core integrity fell below 50% 4182 | -9/Storage | Destroyed 8 combat bots 4322 | -9/Storage | Build established: Commander-Mutant 4629 | -9/Storage | Garrison activated, responded to threat 4670 | -9/Storage | Lost 3 allies 4729 | -9/Storage | Used back door to open Recycling access 4839 | -9/Storage | Entered Recycling 4839 | -9/Recycling | Accompanied by 4 allies 5080 | -9/Recycling | Build established: Scavenger-Mutant 5397 | -9/Recycling | Scanned before Scraplab entrance 5465 | -9/Recycling | Learned location of 1 exit from Storage 5542 | -9/Recycling | Learned 2 Storage zone layouts 5609 | -9/Recycling | Learned Materials emergency access door positions 5664 | -9/Recycling | Learned location of Mines (-9) 5683 | -9/Recycling | Discovered new exit (range 7) 5709 | -9/Recycling | Learned Storage emergency access door positions 5746 | -9/Recycling | Learned Materials emergency access door positions 5775 | -9/Recycling | Learned location of 1 exit from Storage 5812 | -9/Recycling | Learned Materials emergency access door positions 5858 | -9/Recycling | Learned 2 Storage zone layouts 6280 | -9/Recycling | Entered Scraplab 6298 | -9/Recycling | Discovered new exit (range 2) 6315 | -9/Recycling | Entered Scraptown 6315 | -9/Scraptown | Accompanied by 3 allies 6676 | -9/Scraptown | Visited Red Mages 6748 | -9/Scraptown | Visited Assassins FH 6804 | -9/Scraptown | Visited Artisan Demo Area 6866 | -9/Scraptown | Visited UFD Registry 6866 | -9/Scraptown | Registered with UFD as "Smoothslasher" 6890 | -9/Scraptown | Visited Science Testing Area 6930 | -9/Scraptown | Visited Scrapoid Research Area 7361 | -9/Scraptown | Visited Research Penetration Think Tank 7425 | -9/Scraptown | Visited Curators Association 7462 | -9/Scraptown | Visited Derelict Rescue Squad 7475 | -9/Scraptown | Found DRS Beacon 7512 | -9/Scraptown | Visited Infowarlord's Domain 7548 | -9/Scraptown | Visited A0-MCA Data Center 7558 | -9/Scraptown | Given an A- rating by A0-MCA 7562 | -9/Scraptown | Found A0-MCA's Component Scanner 7596 | -9/Scraptown | Visited Scrap Suit Storage 7641 | -9/Scraptown | Visited LU-1G1's Boring Crew 7668 | -9/Scraptown | Visited Abandonware Association 7700 | -9/Scraptown | Learned abandonware demo "HACKBUD.EXE" 8023 | -9/Scraptown | Visited Scrapoid Pod Storage 8038 | -9/Scraptown | Found Scrapoid Pod 8302 | -9/Scraptown | Visited Science Guys 8392 | -9/Scraptown | Found Scrap Suit 8454 | -9/Scraptown | Met Optimus 8454 | -9/Scraptown | Accepted into 0bPrime 8558 | -9/Scraptown | Discovered new exit (range 5) 8565 | -9/Scraptown | Entered Factory 8565 | -6/Factory | Accompanied by 3 allies 8565 | -6/Factory | Evolved 6 slots: Propulsion x1, Utility x4, Weapon x1 8593 | -6/Factory | Loaded intel: 8 recycling unit locations 8607 | -6/Factory | Garrison activated, responded to threat 8713 | -6/Factory | Discovered new exit (range 9) 8894 | -6/Factory | Build established: Scavenger-Tank 8917 | -6/Factory | P-60 Hacker assimilated allied Mercenary 2f 9172 | -6/Factory | Lost 3 parts (2n1u) 9330 | -6/Factory | Lost 5 parts (2n2u1w) 9468 | -6/Factory | Scrapoid reinforcements arrived 9691 | -6/Factory | Lost 4 allies 9862 | -6/Factory | Scrapoid reinforcements arrived 10035 | -6/Factory | Identified exit to Garrison 10049 | -6/Factory | Entered Garrison 10049 | -6/Garrison | Accompanied by 4 allies 10109 | -6/Garrison | Triggered checkpoint 10110 | -6/Garrison | Spotted B-75 Beast 10115 | -6/Garrison | P-60 Hacker assimilated allied 06F08-D 10130 | -6/Garrison | Attached CPS modules to B-75 Beast 10134 | -6/Garrison | Attached CPS modules to B-48 Gladiator 10141 | -6/Garrison | Destroyed B-75 Beast 10202 | -6/Garrison | Identified exit to Factory 10313 | -6/Garrison | Discovered exit to Factory (range 12) 10322 | -6/Garrison | Rescued a captive Derelict 10324 | -6/Garrison | Rescued a captive Derelict 10374 | -6/Garrison | Garrison Relay disabled 10409 | -6/Garrison | Triggered checkpoint 10432 | -6/Garrison | Garrison Relay disabled 10591 | -6/Garrison | Triggered checkpoint 10629 | -6/Garrison | Triggered checkpoint 10659 | -6/Garrison | Triggered checkpoint 11033 | -6/Garrison | Discovered exit to Factory (range 24) 11033 | -6/Garrison | Discovered exit to Factory (range 29) 11033 | -6/Garrison | Discovered exit to Factory (range 53) 11049 | -6/Garrison | Triggered checkpoint 11089 | -6/Garrison | Installed Relay Interface Framework 11102 | -6/Garrison | Garrison Relay disabled 11440 | -6/Garrison | Entered Factory 11525 | -6/Factory | Scrapoid reinforcements arrived 11711 | -6/Factory | Repaired Cld. Plasma Cannon 11837 | -6/Factory | Identified exit to Extension 11905 | -6/Factory | Spotted B-75 Beast 11918 | -6/Factory | Destroyed B-75 Beast 11995 | -6/Factory | Scrapoid reinforcements arrived 12003 | -6/Factory | Build established: Bothacker-Tank 12049 | -6/Factory | P-60 Hacker assimilated allied 06F15-D 12053 | -6/Factory | P-60 Hacker assimilated allied 06F19-D 12134 | -6/Factory | Identified exit to Lower Caves 12140 | -6/Factory | First assault squad dispatched 12212 | -6/Factory | Lost 6 allies 12313 | -6/Factory | Cargo convoy interrupted 12343 | -6/Factory | Core integrity fell below 50% 12359 | -6/Factory | Garrison activated, responded to threat 12935 | -6/Factory | Entered Extension 12950 | -6/Extension | Disrupted transfer network 13128 | -6/Extension | Spotted B-75 Beast 13183 | -6/Extension | Destroyed B-75 Beast 13203 | -6/Extension | Spotted B-75 Beast 13240 | -6/Extension | Destroyed B-75 Beast 13241 | -6/Extension | Identified exit to Factory 13457 | -6/Extension | Energy Cycler disabled 13458 | -6/Extension | Rescued a captive Derelict 13458 | -6/Extension | Rescued a captive Derelict 13458 | -6/Extension | Rescued a captive Derelict 13458 | -6/Extension | Rescued a captive Derelict 13459 | -6/Extension | Rescued a captive Derelict 13459 | -6/Extension | Rescued a captive Derelict 13460 | -6/Extension | Rescued a captive Derelict 13461 | -6/Extension | Rescued a captive Derelict 13461 | -6/Extension | Rescued a captive Derelict 13461 | -6/Extension | Rescued a captive Derelict 13462 | -6/Extension | Rescued a captive Derelict 13573 | -6/Extension | Rescued A7 13699 | -6/Extension | Identified exit to Cetus 13740 | -6/Extension | Loaded intel: 1 recycling unit location 13740 | -6/Extension | Learned location of Protoforge (-2) 13771 | -6/Extension | Build established: Scavenger-Tank 14024 | -6/Extension | Repaired Insulated Plating 14306 | -6/Extension | Learned 2 Lower Caves zone layouts 14347 | -6/Extension | Learned location of Lower Caves (-6) 14403 | -6/Extension | Learned location of 1 exit from Cetus 14434 | -6/Extension | Learned location of 2 exits from Proximity Caves 14458 | -6/Extension | Learned location of Upper Caves (-5) 14786 | -6/Extension | Entered Cetus 14786 | -6/Cetus | Accompanied by 12 allies (A7) 14791 | -6/Cetus | Acquired a Cetus Manufacturing Module code from A7 14808 | -6/Cetus | Spotted Cetus Guard 14808 | -6/Cetus | Spotted Cetus Guard 14813 | -6/Cetus | Allies destroyed Cetus Guard 14813 | -6/Cetus | Spotted Cetus Guard 14814 | -6/Cetus | Spotted Cetus Guard 14825 | -6/Cetus | Allies destroyed Cetus Guard 14825 | -6/Cetus | Allies destroyed Cetus Guard 14829 | -6/Cetus | Destroyed Cetus Guard 14853 | -6/Cetus | Lost 5 allies 14958 | -6/Cetus | Started Cetus Manufacturing Module 14983 | -6/Cetus | Manufactured an Enhanced Grunt 15008 | -6/Cetus | Manufactured an Enhanced Grunt 15033 | -6/Cetus | Manufactured an Enhanced Grunt 15058 | -6/Cetus | Manufactured an Enhanced Grunt 15083 | -6/Cetus | Manufactured an Enhanced Grunt 15175 | -6/Cetus | Identified exit to Archives 15247 | -6/Cetus | Entered Archives 15247 | -6/Archives | Accompanied by 11 allies (A7) 15317 | -6/Archives | Identified exit to Hub_04(d) 15318 | -6/Archives | Unable to access archive contents 15340 | -6/Archives | Unable to access archive contents 15346 | -6/Archives | Discovered exit to Hub_04(d) (range 15) 15364 | -6/Archives | Unable to access archive contents 16024 | -6/Archives | Entered Hub_04(d) 16024 | -6/Hub_04(d) | Accompanied by 13 allies 16042 | -6/Hub_04(d) | Garrison activated, responded to threat 16404 | -6/Hub_04(d) | Discovered exit to Factory (range 16) 16676 | -6/Hub_04(d) | Network Hub disabled 16677 | -6/Hub_04(d) | Core integrity fell below 20% 16702 | -6/Hub_04(d) | Murdered 4 allies 16740 | -6/Hub_04(d) | Entered Factory 16740 | -5/Factory | Accompanied by 3 allies 16740 | -5/Factory | Evolved 2 slots: Power x1, Utility x1 16741 | -5/Factory | Identified exit to Upper Caves 17010 | -5/Factory | Loaded intel: 8 recycling unit locations 17143 | -5/Factory | Watched by a mysterious "MATRIX" hacker 17293 | -5/Factory | P-70 Sage assimilated hostile O-16 Technician 17294 | -5/Factory | Spotted B-75 Beast 17327 | -5/Factory | Destroyed B-75 Beast 17580 | -5/Factory | Repaired Hvy. Siege Treads 17631 | -5/Factory | Repaired Hvy. Plasma Cannon+ 17695 | -5/Factory | Repaired Antimatter Reactor 18416 | -5/Factory | Learned location of 1 exit from Testing 18453 | -5/Factory | Learned Quarantine non-interactive machine intel 18512 | -5/Factory | Learned location of 1 exit from Proximity Caves 18529 | -5/Factory | Learned 4 Testing zone layouts 18558 | -5/Factory | Learned Research emergency access door positions 18840 | -5/Factory | First assault squad dispatched 19226 | -5/Factory | Lost 6 parts (1p2n3u) 19238 | -5/Factory | Destroyed 7 combat bots 19269 | -5/Factory | Lost 3 parts (1p1n1u) 19487 | -5/Factory | Identified exit to Garrison 19490 | -5/Factory | Entered Garrison 19534 | -5/Garrison | Triggered checkpoint 19563 | -5/Garrison | Garrison Relay disabled 19722 | -5/Garrison | Destroyed 8 combat bots 19886 | -5/Garrison | Identified exit to Factory 19956 | -5/Garrison | Triggered checkpoint 19956 | -5/Garrison | Triggered checkpoint 19959 | -5/Garrison | Triggered checkpoint 20010 | -5/Garrison | Triggered checkpoint 20136 | -5/Garrison | Triggered checkpoint 20167 | -5/Garrison | Garrison Relay disabled 20325 | -5/Garrison | Build established: Scavenger-Mutant 20464 | -5/Garrison | Discovered exit to Factory (range 12) 20470 | -5/Garrison | Triggered checkpoint 20518 | -5/Garrison | Triggered checkpoint 20554 | -5/Garrison | Triggered checkpoint 20569 | -5/Garrison | Garrison Relay disabled 20613 | -5/Garrison | Lost 4 parts (1p2u1w) 20639 | -5/Garrison | Build established: Scavenger-Tank 20878 | -5/Garrison | Garrison Relay disabled 20929 | -5/Garrison | Spotted B-75 Beast 20938 | -5/Garrison | Allies destroyed B-75 Beast 21177 | -5/Garrison | Discovered exit to Factory (range 10) 21215 | -5/Garrison | Expanded RIF knowledge: Program Shield 21228 | -5/Garrison | Triggered checkpoint 21265 | -5/Garrison | Garrison Relay disabled 21297 | -5/Garrison | Build established: Commander-Tank 21541 | -5/Garrison | Entered Factory 21541 | -4/Factory | Accompanied by 10 allies 21541 | -4/Factory | Evolved 2 slots: Utility x1, Weapon x1 21542 | -4/Factory | Identified exit to Research 21724 | -4/Factory | Central database locked down 21958 | -4/Factory | Garrison activated, responded to threat 22041 | -4/Factory | First assault squad dispatched 22087 | -4/Factory | High security lockdown imminent 22151 | -4/Factory | Lost 5 allies 22167 | -4/Factory | High security lockdown engaged 22321 | -4/Factory | Lost 6 allies 22341 | -4/Factory | Destroyed 19 combat bots 22344 | -4/Factory | Lost 4 parts (1n1u2w) 22390 | -4/Factory | Crushed by falling debris 22391 | -4/Factory | System corruption reached 10% 22463 | -4/Factory | Lost 13 parts (3p2n5u3w) 22464 | -4/Factory | Entered Research 22464 | -3/Research | Evolved 2 slots: Propulsion x2 22650 | -3/Research | Discovered new exit (range 10) 22653 | -3/Research | Discovered new exit (range 15) 22655 | -3/Research | Entered another Research area 22655 | -2/Research | Evolved 2 slots: Propulsion x1, Utility x1 22667 | -2/Research | Build established: Hacker-Mutant 22675 | -2/Research | Discovered new exit (range 15) 22682 | -2/Research | Lost 3 parts (1n1u1w) 22821 | -2/Research | Entered Access 22821 | -1/Access | Evolved 2 slots: Propulsion x1, Utility x1 23037 | -1/Access | Identified exit to Surface 23051 | -1/Access | Core integrity fell below 50% 23067 | -1/Access | Core integrity fell below 20% 23071 | -1/Access | First assault squad dispatched 23071 | -1/Access | Identified exit to Garrison 23073 | -1/Access | Destroyed by G-73 Enforcer with Heavy Laser Last Messages --------------- Detecting nearby Garrison Access. Slug penetrates Wall. ALERT: Unidentified disturbance in Zone 9R, multiple assault carriers dispatched. C-45 Heavy ARC bursts open, deploying its payload. G-73 Enforcer unfolds itself. L-61 Swordsman unfolds itself. G-73 Enforcer unfolds itself. E-15 Imp unfolds itself. Connecting with Garrison Access... >>Unlock Access door unlocked. EXIT=UNLOCKED: GARRISON Slammed into L-61 Swordsman. E-15 Imp destroyed. Critical hit (Burn: +37). [Achievement: 20k Club] [Achievement: 30k Club] [Achievement: Torch] Map ----- +----------------------------------------------------+ | ?????????????????????????????????????????????????? | | ?????????????????????????????????????????????????? | | ?????????????????????????????????????????????????? | | ?????????????????????????????????????????????????? | | ???????????????????????? ?????????????????######## | | ??????????????????????? ????????????????# " | | ??????????????????????? ???????????????# """ | | ?????????????????????? #######+###???# """ | | ?????????????????????? #???# " | | ?????????????????????? #####% | | ????????????????????? / % | | ????????????????????? ##### | | ????????????????????? % #???# | | ?????????????????????? H ##### #???# | | ????????????????????????????????# ##### | | ??????????????????#####+######### + | | ??????????????????# ## #### | | ??????????????????# * ## #??#######/ | | ??????????????????# + #?????# | | ??????????????????# """"" # #?????# | | ??????????????????# """""""" s#p #?????# | | ??????????????????# """""""" s/ #?????# | | ??????????????????# """"" # #?????# | | ??????????????????# ss # #?????# | | ??????????????????# gl% # ####### | | ??????????????????# g@g # | | ??????????????????# """>""" # | | ??????????????????# """G""" # | | ??????????????????############## | | ???????????????????????????????# | | ???????????????????????????????# | | ???????????????????????????????# | | ???????????????????????????????############### | | ????????????????????????????#? """"""""""" # | | ????????????????????????????# """"T"""" # | | ????????????????????????????# + | | ????????????????????????????# # | | ????????????????????????????# # | | ????????????????????????????# # | | ????????????????????????????# # | | ????????????????????????????# # | | ????????????????????????????# # | | ????????????????????????????################## | | ?????????????????????????????????????????????# | | ?????????????????????????????????????????????# | | ??????????????????????????????################ | | ????????????????????????????? | | ????????????????????????????? | | ???????????????????????????? | | ???????????????????????????? | +----------------------------------------------------+ Best States ------------- Heat Dissipation 103 Energy Generation 45 Energy Capacity 825 Matter Stores 300 Matter Capacity 300 Sight Range 16 Terrain Scan Density 10 Base Temperature (-) 150 EM Shielding 2 Armor Coverage 450 Resistance: KI 20 Resistance: TH 30 Resistance: EM 15 Core Shielding 20 Evasion (%) 62 Recoil Reduction 4 Particle Charging 25 Offensive Hacking 20 Defensive Hacking 20 Relay Coupler Types 1 Relay Coupler Value 31 Item Schematics ----------------- Huge Storage Unit | -9/Storage | Hacked Plasma Cannon | -9/Recycling | Hacked Recalibrator | -9/Recycling | Hacked Centrium Medium Armor Plating | -5/Factory | Scanalyzed Antimatter Reactor | -5/Factory | Hacked Cld. Plasma Cannon | -5/Factory | Hacked Robot Schematics ------------------ None Fabricated ------------ Nothing Repaired ---------- Cld. Plasma Cannon | 26% | -6/Factory Insulated Plating | 44% | -6/Extension Hvy. Siege Treads | 17% | -5/Factory Hvy. Plasma Cannon | 16% | -5/Factory Antimatter Reactor | 36% | -5/Factory Studied --------- Beam Cannon | -9/Materials | Hacked Lgt. Treads | -9/Materials | Hacked Hvy. Plasma Cannon | -5/Factory | Hacked Wave Gun | -5/Factory | Hacked Imp. Heavy Treads | -4/Factory | Hacked Imp. Linear Gravjet | -3/Research | Hacked Adv. Datajack | -3/Research | Hacked Alien Tech Used ----------------- None Achievements -------------- 20k Club 30k Club Beloved Botjacking Generalissimo Giant Slayer Hot Stuff It Was An Accident, I Swear Network Effect Pyromaniac Tank Torch Challenges ------------ None Game ------ Seed NeutrinoAdvancedSplitter Manual? 0 Play Time 03:57:51 Cumulative 39.5 hours Start 2026.07.08 @ 15:20:19 End 2026.07.08 @ 19:32:25 Sessions 1 Manual Loads 0 Difficulty Rogue Special Mode None Game No. 31 Rogue 30 Adventurer 1 Explorer 0 Win Type - Total 1 Types 1/0/0/0/0/0/0/0/0/0 Lore% 27 Gallery% 35 Achievement% 36 Wizard Run 0 Options --------- Layout 1 ASCII 0 Keyboard 0 Movement Numpad Keybinds 0 Fullscreen 1 Font 32/SmallcapsGlow Map View 50x35 Zoom Use 0% Tactical HUD 0 Map Filters NONE Filters NONE Steam 1 RUN: da7035ce-4cd6-4b68-889c-29ffac5e1a5d